fUSD/lending_fUSD_20260430
["ID","MTS","AMOUNT","RATE_DAILY","PERIOD"]
[421350884,1777487450000,-184.78,0.00033,7]
[421350886,1777487450000,-415.0,0.00033091,30]
[421350895,1777487450000,-279.0,0.00033102,30]
[421350873,1777487450000,-250.0,0.00032877,2]
[421350885,1777487450000,-259.0,0.00033091,30]
[421350889,1777487450000,-160.0,0.00033091,30]
[421350894,1777487450000,-800.87,0.000331,14]
[421350893,1777487450000,-1899.0,0.00033092,30]
[421350891,1777487450000,-191.0,0.00033092,30]
[421350890,1777487450000,-507.0,0.00033091,30]
[421350892,1777487450000,-214.0,0.00033092,30]
[421350897,1777487450000,-685.56,0.00033191,2]
[421350896,1777487450000,-151.0,0.00033102,30]
[421350898,1777487450000,-152.18039944,0.00033238,2]
[421350899,1777487450000,-500.0,0.00033287,120]
[421350900,1777487450000,-500.0,0.00033425,120]
[421350845,1777487450000,-209.0,0.0003286,30]
[421350887,1777487450000,-506.0,0.00033091,30]
[421350874,1777487450000,-506.0,0.00032883,8]
[421350888,1777487450000,-292.0,0.00033091,30]
[421350870,1777487450000,-150.0,0.00032877,2]
[421350840,1777487450000,-500.0,0.00032603,120]
[421350869,1777487450000,-150.0,0.00032877,2]
[421350844,1777487450000,-7129.34015176,0.00032842,94]
[421350849,1777487450000,-1006.1,0.00032877,2]
[421350847,1777487450000,-500.0,0.00032876,120]
[421350846,1777487450000,-1632.33298178,0.0003287,2]
[421350843,1777487450000,-150.0,0.00032834,2]
[421350851,1777487450000,-1459.736676,0.00032877,7]
[421350850,1777487450000,-348.76,0.00032877,2]
[421350853,1777487450000,-1459.736676,0.00032877,7]
[421350854,1777487450000,-1459.736676,0.00032877,7]
[421350859,1777487450000,-600.0,0.00032877,120]
[421350856,1777487450000,-1459.736676,0.00032877,7]
[421350855,1777487450000,-1459.736676,0.00032877,7]
[421350852,1777487450000,-1459.736676,0.00032877,7]
[421350871,1777487450000,-150.0,0.00032877,2]
[421350865,1777487450000,-500.0,0.00032877,2]
[421350860,1777487450000,-600.0,0.00032877,120]
[421350868,1777487450000,-150.0,0.00032877,2]
[421350866,1777487450000,-500.0,0.00032877,2]
[421350867,1777487450000,-401.9783714,0.00032877,2]
[421350862,1777487450000,-500.0,0.00032877,2]
[421350864,1777487450000,-500.0,0.00032877,2]
[421350872,1777487450000,-150.0,0.00032877,2]
[421350861,1777487450000,-500.0,0.00032877,2]
[421350857,1777487450000,-1459.736676,0.00032877,7]
[421350858,1777487450000,-1459.736676,0.00032877,7]
[421350863,1777487450000,-500.0,0.00032877,2]
[421350933,1777487451000,-200.0,0.00033623,2]
[421350938,1777487451000,-200.0,0.00033623,2]
[421350935,1777487451000,-200.0,0.00033623,2]
[421350937,1777487451000,-200.0,0.00033623,2]
[421350942,1777487451000,-200.0,0.00033623,2]
[421350932,1777487451000,-200.0,0.00033623,2]
[421350943,1777487451000,-200.0,0.00033623,2]
[421350941,1777487451000,-200.0,0.00033623,2]
[421350944,1777487451000,-200.0,0.00033623,2]
[421350934,1777487451000,-200.0,0.00033623,2]
[421350936,1777487451000,-200.0,0.00033623,2]
[421350945,1777487451000,-200.0,0.00033623,2]
[421350940,1777487451000,-200.0,0.00033623,2]
[421350957,1777487451000,-200.0,0.00033623,2]
[421350946,1777487451000,-200.0,0.00033623,2]
[421350947,1777487451000,-200.0,0.00033623,2]
[421350949,1777487451000,-200.0,0.00033623,2]
[421350953,1777487451000,-200.0,0.00033623,2]
[421350955,1777487451000,-200.0,0.00033623,2]
[421350948,1777487451000,-200.0,0.00033623,2]
[421350951,1777487451000,-200.0,0.00033623,2]
[421350950,1777487451000,-200.0,0.00033623,2]
[421350954,1777487451000,-200.0,0.00033623,2]
[421350952,1777487451000,-200.0,0.00033623,2]
[421350958,1777487451000,-200.0,0.00033623,2]
[421350956,1777487451000,-200.0,0.00033623,2]
[421350929,1777487451000,-200.0,0.00033623,2]
[421350939,1777487451000,-200.0,0.00033623,2]
[421350926,1777487451000,-200.0,0.00033623,2]
[421350908,1777487451000,-200.0,0.00033619,2]
[421350960,1777487451000,-200.0,0.00033623,2]
[421350907,1777487451000,-1227.12269716,0.000335,2]
[421350901,1777487451000,-2028.02687,0.00033432,120]
[421350905,1777487451000,-2119.908358,0.00033432,7]
[421350903,1777487451000,-2119.908358,0.00033432,7]
[421350904,1777487451000,-2119.908358,0.00033432,7]
[421350902,1777487451000,-2119.908358,0.00033432,7]
[421350906,1777487451000,-155.0,0.00033452,15]
[421350910,1777487451000,-200.0,0.00033623,2]
[421350919,1777487451000,-200.0,0.00033623,2]
[421350909,1777487451000,-200.0,0.00033623,2]
[421350918,1777487451000,-200.0,0.00033623,2]
[421350920,1777487451000,-200.0,0.00033623,2]
[421350917,1777487451000,-200.0,0.00033623,2]
[421350916,1777487451000,-200.0,0.00033623,2]
[421350912,1777487451000,-200.0,0.00033623,2]
[421350911,1777487451000,-200.0,0.00033623,2]
[421350914,1777487451000,-200.0,0.00033623,2]
[421350915,1777487451000,-200.0,0.00033623,2]
[421350913,1777487451000,-200.0,0.00033623,2]
[421350921,1777487451000,-200.0,0.00033623,2]
[421350923,1777487451000,-200.0,0.00033623,2]
[421350922,1777487451000,-200.0,0.00033623,2]
[421350925,1777487451000,-200.0,0.00033623,2]
[421350927,1777487451000,-200.0,0.00033623,2]
[421350924,1777487451000,-200.0,0.00033623,2]
[421350931,1777487451000,-200.0,0.00033623,2]
[421350930,1777487451000,-200.0,0.00033623,2]
[421350928,1777487451000,-200.0,0.00033623,2]
[421350959,1777487451000,-240.0,0.00033623,2]
[421350994,1777487451000,-481.05,0.00034212,120]
[421350970,1777487451000,-6500.0,0.00034,2]
[421350999,1777487451000,-600.0,0.00034247,120]
[421350998,1777487451000,-600.0,0.00034247,120]
[421350996,1777487451000,-600.0,0.00034247,120]
[421351000,1777487451000,-600.0,0.00034247,120]
[421350997,1777487451000,-600.0,0.00034247,120]
[421351003,1777487451000,-597.07,0.00034301,30]
[421351001,1777487451000,-600.0,0.00034247,120]
[421351007,1777487451000,-2280.8,0.00034326,30]
[421351004,1777487451000,-822.38,0.00034326,30]
[421351002,1777487451000,-500.0,0.00034247,120]
[421351006,1777487451000,-527.91,0.00034326,30]
[421351005,1777487451000,-15391.35,0.00034326,30]
[421351018,1777487451000,-152.0,0.0003478,5]
[421351019,1777487451000,-1500.0,0.00034795,2]
[421351009,1777487451000,-5003.64666763,0.00034396,2]
[421351020,1777487451000,-150.0,0.00034834,2]
[421351008,1777487451000,-1251.98,0.00034326,30]
[421351010,1777487451000,-1595.0,0.00034463,7]
[421351011,1777487451000,-13310.46590728,0.00034469,2]
[421351012,1777487451000,-500.0,0.0003452,120]
[421351013,1777487451000,-1318.41,0.0003452,30]
[421351016,1777487451000,-228.42,0.000347,30]
[421351017,1777487451000,-2000.0,0.000347,2]
[421351015,1777487451000,-499.36395301,0.00034605,2]
[421351021,1777487451000,-209.0,0.0003488,30]
[421351022,1777487451000,-500.0,0.00034931,120]
[421350961,1777487451000,-200.0,0.00033623,2]
[421350990,1777487451000,-466.87288452,0.00034124,21]
[421350993,1777487451000,-20714.53990387,0.00034197,2]
[421351014,1777487451000,-3017.77,0.0003452,30]
[421350995,1777487451000,-600.0,0.00034247,120]
[421350987,1777487451000,-279.0,0.00034102,30]
[421350962,1777487451000,-366.99472194,0.00033656,2]
[421350965,1777487451000,-1208.1738153,0.000339,120]
[421350966,1777487451000,-631.5844942,0.000339,120]
[421350969,1777487451000,-412.06080708,0.00033999,40]
[421350968,1777487451000,-500.0,0.00033999,7]
[421350963,1777487451000,-500.0,0.00033698,120]
[421350967,1777487451000,-206.42,0.00033999,120]
[421350972,1777487451000,-87229.84,0.00034,7]
[421350973,1777487451000,-800.87,0.00034,14]
[421350979,1777487451000,-415.0,0.00034091,30]
[421350971,1777487451000,-6368.0,0.00034,5]
[421350982,1777487451000,-160.0,0.00034091,30]
[421350978,1777487451000,-259.0,0.00034091,30]
[421350964,1777487451000,-150.0,0.00033834,2]
[421350976,1777487451000,-506.0,0.00034032,9]
[421350974,1777487451000,-151.0,0.00034,7]
[421350991,1777487451000,-673.6,0.00034182,7]
[421350992,1777487451000,-150.0,0.0003419,2]
[421350988,1777487451000,-151.0,0.00034102,30]
[421350985,1777487451000,-214.0,0.00034092,30]
[421350984,1777487451000,-191.0,0.00034092,30]
[421350989,1777487451000,-500.0,0.00034109,120]
[421350980,1777487451000,-506.0,0.00034091,30]
[421350981,1777487451000,-292.0,0.00034091,30]
[421350977,1777487451000,-451.03,0.00034073,30]
[421350983,1777487451000,-507.0,0.00034091,30]
[421350986,1777487451000,-1899.0,0.00034092,30]
[421350975,1777487451000,-151.0,0.00034,7]
[421351055,1777487452000,-292.0,0.00035091,30]
[421351051,1777487452000,-500.0,0.00035068,120]
[421351054,1777487452000,-506.0,0.00035091,30]
[421351049,1777487452000,-160.729884,0.00035068,7]
[421351056,1777487452000,-160.0,0.00035091,30]
[421351057,1777487452000,-507.0,0.00035091,30]
[421351058,1777487452000,-191.0,0.00035092,30]
[421351048,1777487452000,-160.729884,0.00035068,7]
[421351052,1777487452000,-259.0,0.00035091,30]
[421351053,1777487452000,-415.0,0.00035091,30]
[421351063,1777487452000,-151.0,0.00035102,30]
[421351061,1777487452000,-2433.29539866,0.00035095,120]
[421351059,1777487452000,-214.0,0.00035092,30]
[421351070,1777487452000,-4490.66648919,0.0003561,2]
[421351069,1777487452000,-170068.28846802,0.0003561,2]
[421351062,1777487452000,-279.0,0.00035102,30]
[421351065,1777487452000,-500.0,0.00035342,120]
[421351066,1777487452000,-638.0,0.00035562,2]
[421351067,1777487452000,-250.0,0.00035562,40]
[421351046,1777487452000,-322.459217,0.00035068,7]
[421351068,1777487452000,-221.72,0.000356,90]
[421351060,1777487452000,-1899.0,0.00035092,30]
[421351050,1777487452000,-160.729884,0.00035068,7]
[421351031,1777487452000,-1942.44911953,0.00035,2]
[421351041,1777487452000,-2433.29539866,0.00035,120]
[421351064,1777487452000,-506.0,0.00035181,10]
[421351023,1777487452000,-617.15147263,0.00034984,120]
[421351024,1777487452000,-500.0,0.00034999,7]
[421351025,1777487452000,-290.0,0.00035,2]
[421351030,1777487452000,-179.74,0.00035,2]
[421351032,1777487452000,-800.0,0.00035,2]
[421351028,1777487452000,-631.5844942,0.00035,120]
[421351026,1777487452000,-5117.01166315,0.00035,7]
[421351029,1777487452000,-150.0,0.00035,2]
[421351027,1777487452000,-1208.1738153,0.00035,120]
[421351047,1777487452000,-160.729884,0.00035068,7]
[421351043,1777487452000,-322.459217,0.00035068,7]
[421351044,1777487452000,-322.459217,0.00035068,7]
[421351037,1777487452000,-2433.29539866,0.00035,120]
[421351035,1777487452000,-2433.29539866,0.00035,120]
[421351038,1777487452000,-2433.29539866,0.00035,120]
[421351036,1777487452000,-2433.29539866,0.00035,120]
[421351034,1777487452000,-2433.29539866,0.00035,120]
[421351033,1777487452000,-244.68,0.00035,2]
[421351039,1777487452000,-2433.29539866,0.00035,120]
[421351042,1777487452000,-300.0,0.00035,120]
[421351040,1777487452000,-2433.29539866,0.00035,120]
[421351045,1777487452000,-322.459217,0.00035068,7]
[421351072,1777487452000,-240.0,0.0003561,7]
[421351093,1777487452000,-200.0,0.00035616,2]
[421351071,1777487452000,-240.0,0.0003561,7]
[421351105,1777487452000,-1000.0,0.00035616,2]
[421351101,1777487452000,-246.98192571,0.00035616,2]
[421351102,1777487452000,-1000.0,0.00035616,2]
[421351099,1777487452000,-150.69814802,0.00035616,7]
[421351103,1777487452000,-1000.0,0.00035616,2]
[421351104,1777487452000,-1000.0,0.00035616,2]
[421351107,1777487452000,-500.0,0.00035753,120]
[421351117,1777487452000,-500.0,0.00035856,3]
[421351110,1777487452000,-2119.908358,0.00035854,7]
[421351111,1777487452000,-2119.908358,0.00035854,7]
[421351100,1777487452000,-1006.1,0.00035616,2]
[421351108,1777487452000,-150.0,0.00035834,2]
[421351114,1777487452000,-500.0,0.00035856,3]
[421351078,1777487452000,-1475.429017,0.0003561,7]
[421351112,1777487452000,-2119.908358,0.00035854,7]
[421351115,1777487452000,-500.0,0.00035856,3]
[421351109,1777487452000,-8010.7489356,0.00035854,101]
[421351116,1777487452000,-500.0,0.00035856,3]
[421351118,1777487452000,-500.0,0.00035856,3]
[421351119,1777487452000,-500.0,0.00035856,3]
[421351120,1777487452000,-500.0,0.00035856,3]
[421351121,1777487452000,-500.0,0.00035856,3]
[421351106,1777487452000,-500.0,0.00035742,30]
[421351095,1777487452000,-303.0,0.00035616,2]
[421351113,1777487452000,-2119.908358,0.00035854,7]
[421351098,1777487452000,-600.0,0.00035616,120]
[421351097,1777487452000,-600.0,0.00035616,120]
[421351077,1777487452000,-1475.429017,0.0003561,7]
[421351081,1777487452000,-1790.88563,0.0003561,7]
[421351073,1777487452000,-240.0,0.0003561,7]
[421351074,1777487452000,-240.0,0.0003561,7]
[421351075,1777487452000,-1475.429017,0.0003561,7]
[421351076,1777487452000,-1475.429017,0.0003561,7]
[421351080,1777487452000,-1790.88563,0.0003561,7]
[421351079,1777487452000,-1790.88563,0.0003561,7]
[421351084,1777487452000,-177.172588,0.0003561,7]
[421351083,1777487452000,-151.0,0.0003561,7]
[421351082,1777487452000,-1790.88563,0.0003561,7]
[421351092,1777487452000,-200.0,0.00035616,2]
[421351086,1777487452000,-1459.736676,0.0003561,7]
[421351089,1777487452000,-1459.736676,0.0003561,7]
[421351085,1777487452000,-151.0,0.0003561,7]
[421351090,1777487452000,-1012.531094,0.0003561,7]
[421351096,1777487452000,-600.0,0.00035616,120]
[421351088,1777487452000,-1459.736676,0.0003561,7]
[421351091,1777487452000,-1012.531094,0.0003561,7]
[421351094,1777487452000,-200.0,0.00035616,2]
[421351087,1777487452000,-1459.736676,0.0003561,7]
[421351141,1777487453000,-160.0,0.00036091,30]
[421351152,1777487453000,-170.63,0.00036201,120]
[421351148,1777487453000,-1092.07,0.0003611,30]
[421351142,1777487453000,-507.0,0.00036091,30]
[421351140,1777487453000,-292.0,0.00036091,30]
[421351139,1777487453000,-506.0,0.00036091,30]
[421351143,1777487453000,-191.0,0.00036092,30]
[421351146,1777487453000,-279.0,0.00036102,30]
[421351144,1777487453000,-214.0,0.00036092,30]
[421351147,1777487453000,-151.0,0.00036102,30]
[421351149,1777487453000,-673.6,0.00036153,30]
[421351150,1777487453000,-500.0,0.00036164,120]
[421351138,1777487453000,-415.0,0.00036091,30]
[421351145,1777487453000,-1899.0,0.00036092,30]
[421351135,1777487453000,-151.0,0.00036,7]
[421351125,1777487453000,-150.0,0.00035899,2]
[421351137,1777487453000,-259.0,0.00036091,30]
[421351134,1777487453000,-151.0,0.00036,7]
[421351133,1777487453000,-825.66,0.00036,90]
[421351132,1777487453000,-180.68,0.00036,90]
[421351130,1777487453000,-158.0,0.00036,7]
[421351131,1777487453000,-298.22,0.00036,90]
[421351129,1777487453000,-87229.84,0.00036,7]
[421351128,1777487453000,-631.5844942,0.00036,120]
[421351126,1777487453000,-500.0,0.00035999,7]
[421351127,1777487453000,-1208.1738153,0.00036,120]
[421351124,1777487453000,-500.0,0.0003589,120]
[421351123,1777487453000,-500.0,0.00035856,3]
[421351122,1777487453000,-500.0,0.00035856,3]
[421351151,1777487453000,-5260.84353498,0.00036187,2]
[421351136,1777487453000,-800.9,0.00036,14]
[421351154,1777487453000,-170.64052051,0.00036201,120]
[421351179,1777487453000,-600.0,0.00036986,120]
[421351155,1777487453000,-6302.91431268,0.00036271,2]
[421351182,1777487453000,-160.0,0.00037,120]
[421351186,1777487453000,-118.16573295,0.00037,2]
[421351185,1777487453000,-365.0,0.00037,2]
[421351183,1777487453000,-4500.0,0.00037,2]
[421351184,1777487453000,-11500.0,0.00037,30]
[421351180,1777487453000,-600.0,0.00036986,120]
[421351181,1777487453000,-600.0,0.00036986,90]
[421351176,1777487453000,-600.0,0.00036986,120]
[421351173,1777487453000,-1542.27662375,0.00036907,120]
[421351174,1777487453000,-500.0,0.00036986,120]
[421351178,1777487453000,-600.0,0.00036986,120]
[421351177,1777487453000,-600.0,0.00036986,120]
[421351175,1777487453000,-816.87953651,0.00036986,60]
[421351172,1777487453000,-209.0,0.0003689,30]
[421351153,1777487453000,-170.63,0.00036201,120]
[421351171,1777487453000,-150.0,0.00036834,2]
[421351165,1777487453000,-213.36350281,0.00036724,120]
[421351166,1777487453000,-221.12527848,0.00036724,120]
[421351168,1777487453000,-270.62,0.00036811,30]
[421351167,1777487453000,-1631.80896779,0.000368,2]
[421351163,1777487453000,-214.33253288,0.00036724,120]
[421351164,1777487453000,-213.36350282,0.00036724,120]
[421351162,1777487453000,-212.82518416,0.00036724,120]
[421351160,1777487453000,-250.0,0.00036585,50]
[421351161,1777487453000,-500.0,0.00036712,120]
[421351159,1777487453000,-500.0,0.00036575,120]
[421351169,1777487453000,-500.0,0.00036813,30]
[421351157,1777487453000,-878.77,0.000364,90]
[421351158,1777487453000,-685.56,0.0003651,2]
[421351156,1777487453000,-506.0,0.00036331,12]
[421351170,1777487453000,-402.05,0.00036813,30]
[421351187,1777487454000,-642.34125984,0.00032,7]
[421351188,1777487454000,-2513.88556031,0.00023521,2]
[421351190,1777487454000,-277.9875,0.00023521,2]
[421351189,1777487454000,-455.0,0.00023521,2]
[421351215,1777487455000,-1899.0,0.00037092,30]
[421351217,1777487455000,-45117.03875265,0.000371,2]
[421351211,1777487455000,-160.0,0.00037091,30]
[421351214,1777487455000,-214.0,0.00037092,30]
[421351210,1777487455000,-292.0,0.00037091,30]
[421351213,1777487455000,-191.0,0.00037092,30]
[421351208,1777487455000,-415.0,0.00037091,30]
[421351209,1777487455000,-506.0,0.00037091,30]
[421351212,1777487455000,-507.0,0.00037091,30]
[421351207,1777487455000,-259.0,0.00037091,30]
[421351205,1777487455000,-1003.89542246,0.00037,2]
[421351206,1777487455000,-850.0,0.00037,2]
[421351204,1777487455000,-49.68235378,0.00037,2]
[421351200,1777487455000,-370.18983416,0.00032,7]
[421351202,1777487455000,-1012.531094,0.0003561,7]
[421351201,1777487455000,-1012.531094,0.00032,7]
[421351199,1777487455000,-3150.0,0.00030137,120]
[421351197,1777487455000,-722.0,0.00027452,10]
[421351195,1777487455000,-2875.0,0.00027452,10]
[421351198,1777487455000,-1012.531094,0.00029264,7]
[421351196,1777487455000,-1235.0,0.00027452,10]
[421351194,1777487455000,-1000.0,0.00027398,2]
[421351193,1777487455000,-524.85,0.00027397,2]
[421351192,1777487455000,-9362.30509351,0.00023521,2]
[421351191,1777487455000,-239.96082688,0.00023521,2]
[421351203,1777487455000,-1012.531094,0.0003561,7]
[421351219,1777487455000,-1661.11113728,0.000226,2]
[421351216,1777487455000,-500.0,0.00037099,7]
[421351220,1777487455000,-136126.35712078,0.000371,2]
[421351218,1777487455000,-1984.68465873,0.000226,2]
[421351246,1777487455000,-173.44213386,0.0003736,7]
[421351242,1777487455000,-240.0,0.0003736,7]
[421351239,1777487455000,-307.0659978,0.0003736,104]
[421351245,1777487455000,-1475.429017,0.0003736,7]
[421351243,1777487455000,-240.0,0.0003736,7]
[421351241,1777487455000,-240.0,0.0003736,7]
[421351240,1777487455000,-237.86554426,0.0003736,104]
[421351238,1777487455000,-499.6641001,0.0003736,104]
[421351237,1777487455000,-251.6401,0.00027854,7]
[421351236,1777487455000,-748.3599,0.00027854,7]
[421351230,1777487455000,-279.0,0.00037102,30]
[421351235,1777487455000,-6988.24732421,0.0003736,104]
[421351244,1777487455000,-240.0,0.0003736,7]
[421351233,1777487455000,-190.53878735,0.000372,120]
[421351229,1777487455000,-160.729884,0.000371,7]
[421351231,1777487455000,-151.0,0.00037102,30]
[421351232,1777487455000,-190.53878736,0.000372,120]
[421351227,1777487455000,-160.729884,0.000371,7]
[421351225,1777487455000,-322.459217,0.000371,7]
[421351221,1777487455000,-1208.1738153,0.000371,120]
[421351224,1777487455000,-322.459217,0.000371,7]
[421351228,1777487455000,-160.729884,0.000371,7]
[421351223,1777487455000,-322.459217,0.000371,7]
[421351226,1777487455000,-160.729884,0.000371,7]
[421351222,1777487455000,-322.459217,0.000371,7]
[421351234,1777487455000,-1542.27662375,0.00037212,120]
[421351248,1777487528000,1600.0,0.00029378,120]
[421351249,1777487739000,-416.47178,8.496e-05,2]
[421351253,1777488229000,-407.26376865,8.398e-05,2]
[421351254,1777488390000,-1159.63293135,8.398e-05,2]
[421351256,1777488390000,-394.04064107,8.446e-05,2]
[421351258,1777488390000,-150.0,8.496e-05,2]
[421351259,1777488390000,-300.0,8.496e-05,2]
[421351265,1777488390000,-546.50018886,8.497e-05,2]
[421351257,1777488390000,-1200.0,8.496e-05,2]
[421351260,1777488390000,-546.50018886,8.497e-05,2]
[421351261,1777488390000,-546.50018886,8.497e-05,2]
[421351262,1777488390000,-546.50018886,8.497e-05,2]
[421351263,1777488390000,-546.50018886,8.497e-05,2]
[421351264,1777488390000,-546.50018886,8.497e-05,2]
[421351255,1777488390000,-259.0,8.398e-05,2]
[421351266,1777488390000,-546.50018886,8.497e-05,2]
[421351275,1777488390000,-546.50018886,8.497e-05,2]
[421351268,1777488390000,-546.50018886,8.497e-05,2]
[421351267,1777488390000,-546.50018886,8.497e-05,2]
[421351280,1777488390000,-546.50018886,8.497e-05,2]
[421351279,1777488390000,-546.50018886,8.497e-05,2]
[421351276,1777488390000,-546.50018886,8.497e-05,2]
[421351277,1777488390000,-546.50018886,8.497e-05,2]
[421351278,1777488390000,-546.50018886,8.497e-05,2]
[421351274,1777488390000,-546.50018886,8.497e-05,2]
[421351272,1777488390000,-546.50018886,8.497e-05,2]
[421351270,1777488390000,-546.50018886,8.497e-05,2]
[421351271,1777488390000,-546.50018886,8.497e-05,2]
[421351269,1777488390000,-546.50018886,8.497e-05,2]
[421351273,1777488390000,-546.50018886,8.497e-05,2]
[421351288,1777488391000,-546.50018886,8.497e-05,2]
[421351293,1777488391000,-546.50018886,8.497e-05,2]
[421351292,1777488391000,-546.50018886,8.497e-05,2]
[421351296,1777488391000,-546.50018886,8.497e-05,2]
[421351290,1777488391000,-546.50018886,8.497e-05,2]
[421351289,1777488391000,-546.50018886,8.497e-05,2]
[421351282,1777488391000,-546.50018886,8.497e-05,2]
[421351286,1777488391000,-546.50018886,8.497e-05,2]
[421351287,1777488391000,-546.50018886,8.497e-05,2]
[421351283,1777488391000,-546.50018886,8.497e-05,2]
[421351284,1777488391000,-546.50018886,8.497e-05,2]
[421351281,1777488391000,-546.50018886,8.497e-05,2]
[421351285,1777488391000,-546.50018886,8.497e-05,2]
[421351294,1777488391000,-546.50018886,8.497e-05,2]
[421351291,1777488391000,-546.50018886,8.497e-05,2]
[421351297,1777488391000,-546.50018886,8.497e-05,2]
[421351310,1777488391000,-537.60367416,8.497e-05,2]
[421351308,1777488391000,-537.60367416,8.497e-05,2]
[421351309,1777488391000,-537.60367416,8.497e-05,2]
[421351307,1777488391000,-537.60367416,8.497e-05,2]
[421351306,1777488391000,-537.60367416,8.497e-05,2]
[421351305,1777488391000,-537.60367416,8.497e-05,2]
[421351295,1777488391000,-546.50018886,8.497e-05,2]
[421351303,1777488391000,-537.60367416,8.497e-05,2]
[421351302,1777488391000,-546.50018886,8.497e-05,2]
[421351301,1777488391000,-546.50018886,8.497e-05,2]
[421351298,1777488391000,-546.50018886,8.497e-05,2]
[421351300,1777488391000,-546.50018886,8.497e-05,2]
[421351299,1777488391000,-546.50018886,8.497e-05,2]
[421351304,1777488391000,-537.60367416,8.497e-05,2]
[421351324,1777488392000,-537.60367416,8.497e-05,2]
[421351322,1777488392000,-537.60367416,8.497e-05,2]
[421351321,1777488392000,-537.60367416,8.497e-05,2]
[421351319,1777488392000,-537.60367416,8.497e-05,2]
[421351320,1777488392000,-537.60367416,8.497e-05,2]
[421351316,1777488392000,-537.60367416,8.497e-05,2]
[421351314,1777488392000,-537.60367416,8.497e-05,2]
[421351317,1777488392000,-537.60367416,8.497e-05,2]
[421351313,1777488392000,-537.60367416,8.497e-05,2]
[421351315,1777488392000,-537.60367416,8.497e-05,2]
[421351312,1777488392000,-537.60367416,8.497e-05,2]
[421351311,1777488392000,-537.60367416,8.497e-05,2]
[421351323,1777488392000,-537.60367416,8.497e-05,2]
[421351318,1777488392000,-537.60367416,8.497e-05,2]
[421351325,1777488392000,-537.60367416,8.497e-05,2]
[421351328,1777488392000,-537.60367416,8.497e-05,2]
[421351341,1777488392000,-518.40354293,8.497e-05,2]
[421351342,1777488392000,-518.40354293,8.497e-05,2]
[421351327,1777488392000,-537.60367416,8.497e-05,2]
[421351339,1777488392000,-518.40354293,8.497e-05,2]
[421351338,1777488392000,-518.40354293,8.497e-05,2]
[421351340,1777488392000,-518.40354293,8.497e-05,2]
[421351337,1777488392000,-518.40354293,8.497e-05,2]
[421351335,1777488392000,-518.40354293,8.497e-05,2]
[421351336,1777488392000,-518.40354293,8.497e-05,2]
[421351332,1777488392000,-518.40354293,8.497e-05,2]
[421351333,1777488392000,-518.40354293,8.497e-05,2]
[421351330,1777488392000,-537.60367416,8.497e-05,2]
[421351331,1777488392000,-518.40354293,8.497e-05,2]
[421351329,1777488392000,-537.60367416,8.497e-05,2]
[421351326,1777488392000,-537.60367416,8.497e-05,2]
[421351334,1777488392000,-518.40354293,8.497e-05,2]
[421351349,1777488393000,-300.0,9.238e-05,2]
[421351353,1777488393000,-784.0,9.345e-05,2]
[421351354,1777488393000,-255.0,9.345e-05,2]
[421351350,1777488393000,-250.0,9.238e-05,2]
[421351351,1777488393000,-177.2202,9.3e-05,2]
[421351352,1777488393000,-418.91136027,9.344e-05,2]
[421351347,1777488393000,-418.91136027,8.921e-05,2]
[421351346,1777488393000,-463869.9749,8.498e-05,2]
[421351345,1777488393000,-418.91136027,8.497e-05,2]
[421351344,1777488393000,-518.40354289,8.497e-05,2]
[421351343,1777488393000,-518.40354293,8.497e-05,2]
[421351348,1777488393000,-5068.88315428,9.238e-05,2]
[421351355,1777488393000,-150.0,9.518e-05,2]